fUST/lending_fUST_20240506
["ID","MTS","AMOUNT","RATE_DAILY","PERIOD"]
[326490904,1715001049598,-153.0,0.000168,2]
[326490905,1715001049608,-305.00270974,0.00016811,2]
[326490906,1715001049617,-526.81613123,0.00016811,2]
[326490907,1715001049627,-5155.83435574,0.00016818,2]
[326490908,1715001049636,-199.99364712,0.00016818,2]
[326490909,1715001049646,-24180.76189023,0.000169,2]
[326490910,1715001049656,-178.018031,0.000169,2]
[326490911,1715001049665,-178.018031,0.000169,2]
[326490912,1715001049676,-153.0,0.00016932,2]
[326490913,1715001049685,-153.0,0.00016932,2]
[326490914,1715001049694,-153.0,0.00016932,2]
[326490915,1715001049705,-153.0,0.00016932,2]
[326490916,1715001049714,-151.0,0.00016932,2]
[326490917,1715001049724,-500.0,0.00016986,2]
[326490918,1715001049733,-500.0,0.00016986,2]
[326490919,1715001049743,-500.0,0.00016986,2]
[326490920,1715001049752,-500.0,0.00016986,2]
[326490921,1715001049761,-500.0,0.00016986,2]
[326490922,1715001049771,-500.0,0.00016986,2]
[326490923,1715001049780,-1137.64,0.00016986,2]
[326490924,1715001049789,-631.86,0.00016986,2]
[326490925,1715001049798,-500.0,0.00016986,2]
[326490926,1715001049808,-500.0,0.00016986,2]
[326490927,1715001049817,-500.0,0.00016986,2]
[326490928,1715001049826,-300.26306703,0.00016986,2]
[326490929,1715001049836,-500.0,0.00016986,2]
[326490930,1715001049845,-500.0,0.00016986,2]
[326490931,1715001049855,-415.25693233,0.00016986,2]
[326490932,1715001049864,-1645.28,0.00016986,2]
[326490933,1715001049874,-500.0,0.00016986,2]
[326490934,1715001049884,-544.41,0.00016986,2]
[326490935,1715001049893,-500.0,0.00016986,2]
[326490936,1715001049903,-886.98,0.00016986,2]
[326490937,1715001049914,-500.0,0.00016986,2]
[326490938,1715001049923,-567.30386732,0.00016986,2]
[326490939,1715001049934,-335.16394699,0.00016986,2]
[326490940,1715001049943,-500.0,0.00016986,2]
[326490941,1715001049955,-500.0,0.00016986,2]
[326490942,1715001049964,-621.71,0.00016986,2]
[326490943,1715001049973,-2173.11,0.00016986,2]
[326490944,1715001049983,-500.0,0.00016986,2]
[326490945,1715001049992,-500.0,0.00016986,2]
[326490946,1715001050002,-500.0,0.00016986,2]
[326490947,1715001050012,-662.39,0.00016986,2]
[326490948,1715001050022,-500.0,0.00016986,2]
[326490949,1715001050032,-500.0,0.00016986,2]
[326490950,1715001050042,-500.0,0.00016986,2]
[326490951,1715001050053,-500.0,0.00016986,2]
[326490952,1715001050063,-608.4,0.00016986,2]
[326490953,1715001050072,-740.91,0.00016986,2]
[326490954,1715001050082,-500.0,0.00016986,2]
[326490955,1715001050091,-898.62,0.00016986,2]
[326490956,1715001050100,-201.04184514,0.00016986,2]
[326490957,1715001050118,-404.19275326,0.00016986,2]
[326490958,1715001050130,-500.0,0.00016986,2]
[326490959,1715001050139,-500.0,0.00016986,2]
[326490960,1715001050149,-500.0,0.00016986,2]
[326490961,1715001050159,-530.49441818,0.00016986,2]
[326490962,1715001050168,-500.0,0.00016986,2]
[326490963,1715001050177,-500.0,0.00016986,2]
[326490964,1715001050187,-500.0,0.00016986,2]
[326490965,1715001050196,-500.0,0.00016986,2]
[326490966,1715001050207,-500.0,0.00016986,2]
[326490967,1715001050217,-338.33251196,0.00016986,2]
[326490968,1715001050226,-500.0,0.00016986,2]
[326490969,1715001050236,-500.0,0.00016986,2]
[326490970,1715001050245,-500.0,0.00016986,2]
[326490971,1715001050254,-500.0,0.00016986,2]
[326490972,1715001050264,-500.0,0.00016986,2]
[326490974,1715001050273,-500.0,0.00016986,2]
[326490975,1715001050283,-500.0,0.00016986,2]
[326490977,1715001050292,-747.11,0.00016986,2]
[326490978,1715001050301,-500.0,0.00016986,2]
[326490979,1715001050310,-500.0,0.00016986,2]
[326490980,1715001050320,-1690.52,0.00016986,2]
[326490981,1715001050329,-1318.39,0.00016986,2]
[326490982,1715001050342,-2039.16,0.00016986,2]
[326490983,1715001050352,-1071.2,0.00016986,2]
[326490984,1715001050361,-500.0,0.00016986,2]
[326490985,1715001050370,-500.0,0.00016986,2]
[326490986,1715001050381,-1000.0,0.00016986,2]
[326490987,1715001050390,-500.0,0.00016986,2]
[326490988,1715001050399,-810.2,0.00016986,2]
[326490989,1715001050410,-1137.42,0.00016986,2]
[326490990,1715001050421,-500.0,0.00016986,2]
[326490991,1715001050430,-527.12869137,0.00016986,2]
[326490992,1715001050440,-500.0,0.00016986,2]
[326490993,1715001050449,-1365.47,0.00016986,2]
[326490994,1715001050459,-500.0,0.00016986,2]
[326490995,1715001050468,-1072.12,0.00016986,2]
[326490996,1715001050477,-500.0,0.00016986,2]
[326490997,1715001050489,-500.0,0.00016986,2]
[326490998,1715001050498,-500.0,0.00016986,2]
[326490999,1715001050507,-500.0,0.00016986,2]
[326491000,1715001050516,-627.7,0.00016986,2]
[326491001,1715001050526,-500.0,0.00016986,2]
[326491002,1715001050535,-425.17103774,0.00016986,2]
[326491003,1715001050545,-500.0,0.00016986,2]
[326491004,1715001050554,-500.0,0.00016986,2]
[326491005,1715001050564,-593.61,0.00016986,2]
[326491006,1715001050574,-575.24,0.00016986,2]
[326491007,1715001050584,-596.54,0.00016986,2]
[326491008,1715001050594,-500.0,0.00016986,2]
[326491009,1715001050604,-500.0,0.00016986,2]
[326491011,1715001050625,-184.57942139,0.00016986,2]
[326491012,1715001050634,-500.0,0.00016986,2]
[326491013,1715001050644,-500.0,0.00016986,2]
[326491014,1715001050654,-500.0,0.00016986,2]
[326491015,1715001050666,-2353.15,0.00016986,2]
[326491016,1715001050676,-699.52,0.00016986,2]
[326491017,1715001050686,-588.85866029,0.00016986,2]
[326491018,1715001050697,-506.56800228,0.00016986,2]
[326491019,1715001050708,-500.0,0.00016986,2]
[326491020,1715001050718,-500.0,0.00016986,2]
[326491021,1715001050730,-500.0,0.00016986,2]
[326491022,1715001050739,-1800.16,0.00016986,2]
[326491023,1715001050749,-5045.24,0.00016986,2]
[326491024,1715001050759,-500.0,0.00016986,2]
[326491025,1715001050768,-1046.92,0.00016986,2]
[326491026,1715001050778,-504.25925085,0.00016986,2]
[326491027,1715001050788,-733.82,0.00016986,2]
[326491028,1715001050797,-1727.07,0.00016986,2]
[326491029,1715001050806,-593.95,0.00016986,2]
[326491030,1715001050816,-500.0,0.00016986,2]
[326491031,1715001050825,-500.0,0.00016986,2]
[326491032,1715001050835,-500.0,0.00016986,2]
[326491033,1715001050844,-516.2763399,0.00016986,2]
[326491034,1715001050854,-500.0,0.00016986,2]
[326491035,1715001050864,-532.27,0.00016986,2]
[326491036,1715001050873,-338.37203042,0.00016986,2]
[326491037,1715001050882,-1962.34,0.00016986,2]
[326491038,1715001050893,-500.0,0.00016986,2]
[326491039,1715001050903,-774.59,0.00016986,2]
[326491040,1715001050912,-509.1399184,0.00016986,2]
[326491041,1715001050921,-2105.62,0.00016986,2]
[326491042,1715001050931,-624.80889237,0.00016986,2]
[326491043,1715001050940,-500.0,0.00016986,2]
[326491044,1715001050951,-500.0,0.00016986,2]
[326491045,1715001050960,-510.21365622,0.00016986,2]
[326491046,1715001050970,-717.58,0.00016986,2]
[326491047,1715001050979,-500.0,0.00016986,2]
[326491048,1715001050988,-500.0,0.00016986,2]
[326491049,1715001051000,-500.0,0.00016986,2]
[326491050,1715001051009,-500.0,0.00016986,2]
[326491051,1715001051018,-500.0,0.00016986,2]
[326491052,1715001051028,-500.0,0.00016986,2]
[326491053,1715001051178,-500.0,0.00016986,2]
[326491054,1715001051190,-500.0,0.00016986,2]
[326491055,1715001051200,-509.16951721,0.00016986,2]
[326491056,1715001051209,-500.0,0.00016986,2]
[326491057,1715001051219,-500.0,0.00016986,2]
[326491058,1715001051229,-500.0,0.00016986,2]
[326491059,1715001051239,-500.0,0.00016986,2]
[326491060,1715001051249,-500.0,0.00016986,2]
[326491061,1715001051258,-714.46,0.00016986,2]
[326491062,1715001051268,-500.0,0.00016986,2]
[326491063,1715001051277,-500.0,0.00016986,2]
[326491064,1715001051286,-500.0,0.00016986,2]
[326491065,1715001051295,-500.0,0.00016986,2]
[326491066,1715001051305,-500.0,0.00016986,2]
[326491067,1715001051314,-500.0,0.00016986,2]
[326491068,1715001051324,-684.77,0.00016986,2]
[326491069,1715001051335,-500.0,0.00016986,2]
[326491070,1715001051346,-500.0,0.00016986,2]
[326491071,1715001051355,-3590.49,0.00016986,2]
[326491072,1715001051364,-1033.57,0.00016986,2]
[326491073,1715001051373,-625.7,0.00016986,2]
[326491074,1715001051384,-500.0,0.00016986,2]
[326491075,1715001051394,-700.17,0.00016986,2]
[326491076,1715001051403,-500.0,0.00016986,2]
[326491077,1715001051414,-500.0,0.00016986,2]
[326491078,1715001051427,-500.0,0.00016986,2]
[326491079,1715001051436,-572.79,0.00016986,2]
[326491080,1715001051446,-500.0,0.00016986,2]
[326491081,1715001051457,-950.21,0.00016986,2]
[326491082,1715001051466,-500.0,0.00016986,2]
[326491083,1715001051475,-519.29,0.00016986,2]
[326491084,1715001051484,-500.0,0.00016986,2]
[326491085,1715001051494,-500.0,0.00016986,2]
[326491086,1715001051504,-686.92,0.00016986,2]
[326491087,1715001051514,-500.0,0.00016986,2]
[326491088,1715001051524,-500.0,0.00016986,2]
[326491089,1715001051533,-1345.07,0.00016986,2]
[326491090,1715001051544,-1183.75,0.00016986,2]
[326491091,1715001051554,-500.0,0.00016986,2]
[326491092,1715001051564,-500.0,0.00016986,2]
[326491093,1715001051574,-500.0,0.00016986,2]
[326491094,1715001051583,-14250.63,0.00016986,2]
[326491095,1715001051592,-500.0,0.00016986,2]
[326491096,1715001051601,-500.0,0.00016986,2]
[326491097,1715001051612,-524.3,0.00016986,2]
[326491098,1715001051621,-8999.19,0.00016986,2]
[326491099,1715001051630,-10484.08,0.00016986,2]
[326491100,1715001051643,-500.0,0.00016986,2]
[326491101,1715001051652,-853.12,0.00016986,2]
[326491102,1715001051662,-500.0,0.00016986,2]
[326491103,1715001051671,-500.0,0.00016986,2]
[326491104,1715001051680,-500.0,0.00016986,2]
[326491105,1715001051689,-500.0,0.00016986,2]
[326491106,1715001051699,-500.0,0.00016986,2]
[326491107,1715001051711,-500.0,0.00016986,2]
[326491108,1715001051720,-1220.42,0.00016986,2]
[326491109,1715001051729,-537.39,0.00016986,2]
[326491110,1715001051739,-869.6,0.00016986,2]
[326491111,1715001051748,-213.83737184,0.00016986,2]
[326491112,1715001051757,-5697.55,0.00016986,2]
[326491113,1715001051767,-642.01,0.00016986,2]
[326491114,1715001051776,-12706.29,0.00016986,2]
[326491115,1715001051785,-500.0,0.00016986,2]
[326491116,1715001051794,-1579.61,0.00016986,2]
[326491117,1715001051803,-243.27102776,0.00016986,2]
[326491118,1715001051812,-763.61,0.00016986,2]
[326491119,1715001051832,-151.0,0.00016986,2]
[326491120,1715001051842,-151.0,0.00016986,2]
[326491121,1715001051852,-500.0,0.00016986,2]
[326491122,1715001051862,-500.0,0.00016986,2]
[326491123,1715001051871,-151.0,0.00016986,2]
[326491124,1715001051880,-1177.83,0.00016986,2]
[326491125,1715001051890,-951.38,0.00016986,2]
[326491126,1715001051899,-500.0,0.00016986,2]
[326491127,1715001051909,-500.0,0.00016986,2]
[326491128,1715001051919,-500.0,0.00016986,2]
[326491129,1715001051929,-2621.5,0.00016986,2]
[326491130,1715001051938,-645.78,0.00016986,2]
[326491131,1715001051947,-6405.17,0.00016986,2]
[326491132,1715001051960,-500.0,0.00016986,2]
[326491133,1715001051970,-178.018031,0.00016986,2]
[326491134,1715001051979,-178.018031,0.00016986,2]
[326491135,1715001051988,-500.0,0.00016986,2]
[326491136,1715001051997,-178.018031,0.00016986,2]
[326491137,1715001052006,-178.018031,0.00016986,2]
[326491138,1715001052016,-500.0,0.00016986,2]
[326491139,1715001052025,-178.018031,0.00016986,2]
[326491140,1715001052035,-500.0,0.00016986,2]
[326491141,1715001052044,-500.0,0.00016986,2]
[326491142,1715001052053,-178.018031,0.00016986,2]
[326491143,1715001052062,-551.5,0.00016986,2]
[326491144,1715001052071,-598.83,0.00016986,2]
[326491145,1715001052081,-787.21,0.00016986,2]
[326491146,1715001052090,-500.0,0.00016986,2]
[326491147,1715001052099,-6200.74,0.00016986,2]
[326491148,1715001052108,-577.54531544,0.00016986,2]
[326491149,1715001052117,-501.44,0.00016986,2]
[326491150,1715001052126,-500.0,0.00016986,2]
[326491151,1715001052136,-7461.92,0.00016986,2]
[326491152,1715001052145,-608.81,0.00016986,2]
[326491153,1715001052154,-6869.09,0.00016986,2]
[326491154,1715001052164,-3420.54,0.00016986,2]
[326491155,1715001052173,-500.0,0.00016986,2]
[326491156,1715001052182,-553.6,0.00016986,2]
[326491157,1715001052191,-1000.0,0.00016986,2]
[326491158,1715001052200,-500.0,0.00016986,2]
[326491159,1715001052213,-500.0,0.00016986,2]
[326491160,1715001052222,-500.0,0.00016986,2]
[326491161,1715001052231,-1567.99,0.00016986,2]
[326491162,1715001052241,-7650.93,0.00016986,2]
[326491163,1715001052250,-500.0,0.00016986,2]
[326491164,1715001052260,-500.0,0.00016986,2]
[326491165,1715001052269,-500.0,0.00016986,2]
[326491166,1715001052278,-515.88,0.00016986,2]
[326491167,1715001052287,-2092.47,0.00016986,2]
[326491168,1715001052296,-929.3,0.00016986,2]
[326491169,1715001052306,-681.28,0.00016986,2]
[326491170,1715001052315,-43941.12154669,0.00017,2]
[326491171,1715001052340,-306.0,0.00017,2]
[326491172,1715001052360,-154.9930611,0.00017,2]
[326491173,1715001052375,-170.21789675,0.00017087,2]
[326491174,1715001052392,-254.12433969,0.00017087,2]
[326491175,1715001052405,-250.30585746,0.00017087,2]
[326491176,1715001052431,-267.02086392,0.00017087,2]
[326491177,1715001052455,-186.38735591,0.00017088,2]
[326491178,1715001052479,-223.6823407,0.00017088,2]
[326491179,1715001052500,-156.06290913,0.00017088,2]
[326491180,1715001052516,-208.58528082,0.00017088,2]
[326491181,1715001052536,-188.25277873,0.00017088,2]
[326491182,1715001052546,-187.2496988,0.00017088,2]
[326491183,1715001052561,-211.9123453,0.00017088,2]
[326491184,1715001052584,-193.79734343,0.00017088,2]
[326491185,1715001052599,-205.03706654,0.00017088,2]
[326491186,1715001052615,-227.62198981,0.00017088,2]
[326491187,1715001052624,-250.16807333,0.00017088,2]
[326491188,1715001052633,-212.93466673,0.00017088,2]
[326491189,1715001052643,-244.95688914,0.00017088,2]
[326491190,1715001052651,-171.72456816,0.00017088,2]
[326491191,1715001052660,-154.84504687,0.00017088,2]
[326491192,1715001052669,-226.71281932,0.00017088,2]
[326491193,1715001052678,-340.30285018,0.00017088,2]
[326491194,1715001052687,-301.01592841,0.00017088,2]
[326491195,1715001052696,-155.76995916,0.00017088,2]
[326491196,1715001052707,-1398.84794854,0.00017088,2]
[326491197,1715001052721,-307.55903547,0.00017088,2]
[326491198,1715001052731,-251.52948951,0.00017088,2]
[326491199,1715001052740,-1853.49185713,0.00017088,2]
[326491200,1715001052749,-155.24360737,0.00017088,2]
[326491201,1715001052758,-314.36756752,0.00017088,2]
[326491202,1715001052767,-155.3497844,0.00017088,2]
[326491203,1715001052777,-159.17459979,0.00017088,2]
[326491204,1715001052786,-155.76071258,0.00017088,2]
[326491205,1715001052795,-158.07345455,0.00017088,2]
[326491206,1715001052804,-184.97494487,0.00017088,2]
[326491207,1715001052813,-234.44730676,0.00017088,2]
[326491208,1715001052823,-262.03251466,0.00017088,2]
[326491209,1715001052832,-620.00003492,0.0001712,2]
[326491210,1715001052841,-306.0,0.00017178,2]
[326491211,1715001052850,-153.0,0.00017178,2]
[326491212,1715001052859,-153.0,0.00017178,2]
[326491213,1715001052868,-153.0,0.00017178,2]
[326491214,1715001052877,-1381.01051584,0.00017197,2]
[326491215,1715001052886,-595.08736183,0.00017197,2]
[326491216,1715001052896,-1215.59712732,0.00017197,2]
[326491217,1715001052905,-500.0,0.0001726,2]
[326491218,1715001052916,-500.0,0.0001726,2]
[326491219,1715001052925,-500.0,0.0001726,2]
[326491220,1715001052943,-500.0,0.0001726,2]
[326491221,1715001052962,-517.16651671,0.0001726,2]
[326491222,1715001052989,-500.0,0.0001726,2]
[326491223,1715001053004,-1137.64,0.0001726,2]
[326491224,1715001053019,-631.86,0.0001726,2]
[326491225,1715001053050,-500.0,0.0001726,2]
[326491226,1715001053071,-500.0,0.0001726,2]
[326491227,1715001053082,-500.0,0.0001726,2]
[326491228,1715001053091,-500.0,0.0001726,2]
[326491229,1715001053100,-500.0,0.0001726,2]
[326491230,1715001053110,-1645.28,0.0001726,2]
[326491231,1715001053120,-500.0,0.0001726,2]
[326491232,1715001053130,-544.41,0.0001726,2]
[326491233,1715001053139,-500.0,0.0001726,2]
[326491234,1715001053148,-886.98,0.0001726,2]
[326491235,1715001053158,-500.0,0.0001726,2]
[326491236,1715001053181,-500.0,0.0001726,2]
[326491237,1715001053190,-500.0,0.0001726,2]
[326491238,1715001053201,-621.71,0.0001726,2]
[326491239,1715001053212,-2173.11,0.0001726,2]
[326491240,1715001053221,-500.0,0.0001726,2]
[326491241,1715001053230,-500.0,0.0001726,2]
[326491242,1715001053239,-662.39,0.0001726,2]
[326491243,1715001053248,-500.0,0.0001726,2]
[326491244,1715001053257,-500.0,0.0001726,2]
[326491245,1715001053267,-500.0,0.0001726,2]
[326491246,1715001053276,-500.0,0.0001726,2]
[326491247,1715001053285,-500.0,0.0001726,2]
[326491248,1715001053295,-608.4,0.0001726,2]
[326491249,1715001053306,-740.91,0.0001726,2]
[326491250,1715001053315,-500.0,0.0001726,2]
[326491251,1715001053325,-898.62,0.0001726,2]
[326491252,1715001053337,-500.0,0.0001726,2]
[326491253,1715001053353,-500.0,0.0001726,2]
[326491254,1715001053363,-500.0,0.0001726,2]
[326491255,1715001053373,-441.27210016,0.0001726,2]
[326491256,1715001053384,-614.97865851,0.0001726,2]
[326491257,1715001053394,-500.0,0.0001726,2]
[326491258,1715001053403,-500.0,0.0001726,2]
[326491259,1715001053414,-500.0,0.0001726,2]
[326491260,1715001053423,-160.58536307,0.0001726,2]
[326491261,1715001053433,-500.0,0.0001726,2]
[326491262,1715001053442,-500.0,0.0001726,2]
[326491263,1715001053451,-500.0,0.0001726,2]
[326491264,1715001053462,-500.0,0.0001726,2]
[326491265,1715001053471,-500.0,0.0001726,2]
[326491266,1715001053480,-497.16,0.0001726,2]
[326491267,1715001053489,-747.11,0.0001726,2]
[326491268,1715001053498,-500.0,0.0001726,2]
[326491269,1715001053507,-500.0,0.0001726,2]
[326491270,1715001053517,-1690.52,0.0001726,2]
[326491271,1715001053527,-2039.16,0.0001726,2]
[326491272,1715001053536,-1318.39,0.0001726,2]
[326491273,1715001053546,-1071.2,0.0001726,2]
[326491274,1715001053555,-500.0,0.0001726,2]
[326491275,1715001053564,-500.0,0.0001726,2]
[326491276,1715001053574,-1000.0,0.0001726,2]
[326491277,1715001053583,-500.0,0.0001726,2]
[326491278,1715001053593,-810.2,0.0001726,2]
[326491279,1715001053604,-1137.42,0.0001726,2]
[326491280,1715001053613,-500.0,0.0001726,2]
[326491281,1715001053623,-500.0,0.0001726,2]
[326491282,1715001053644,-1365.47,0.0001726,2]
[326491283,1715001053654,-500.0,0.0001726,2]
[326491284,1715001053664,-1072.12,0.0001726,2]
[326491285,1715001053674,-500.0,0.0001726,2]
[326491286,1715001053684,-500.0,0.0001726,2]
[326491287,1715001053693,-500.0,0.0001726,2]
[326491288,1715001053704,-500.0,0.0001726,2]
[326491289,1715001053714,-627.7,0.0001726,2]
[326491290,1715001053723,-500.0,0.0001726,2]
[326491291,1715001053732,-500.0,0.0001726,2]
[326491292,1715001053741,-500.0,0.0001726,2]
[326491293,1715001053751,-593.61,0.0001726,2]
[326491294,1715001053760,-575.24,0.0001726,2]
[326491295,1715001053769,-596.54,0.0001726,2]
[326491296,1715001053778,-500.0,0.0001726,2]
[326491297,1715001053788,-500.0,0.0001726,2]
[326491298,1715001053797,-500.0,0.0001726,2]
[326491299,1715001053806,-396.98225373,0.0001726,2]
[326491300,1715001053816,-500.0,0.0001726,2]
[326491301,1715001053826,-2353.15,0.0001726,2]
[326491302,1715001053835,-699.52,0.0001726,2]
[326491303,1715001053844,-500.0,0.0001726,2]
[326491304,1715001053854,-500.0,0.0001726,2]
[326491305,1715001053863,-516.66331737,0.0001726,2]
[326491306,1715001053872,-1800.16,0.0001726,2]
[326491307,1715001053881,-5045.24,0.0001726,2]
[326491308,1715001053896,-500.0,0.0001726,2]
[326491309,1715001053913,-1046.92,0.0001726,2]
[326491310,1715001053923,-733.82,0.0001726,2]
[326491311,1715001053932,-1727.07,0.0001726,2]
[326491312,1715001053941,-593.95,0.0001726,2]
[326491313,1715001053951,-500.0,0.0001726,2]
[326491314,1715001053962,-500.0,0.0001726,2]
[326491315,1715001053971,-500.0,0.0001726,2]
[326491316,1715001053980,-500.0,0.0001726,2]
[326491317,1715001053992,-532.27,0.0001726,2]
[326491318,1715001054002,-1962.34,0.0001726,2]
[326491319,1715001054011,-500.0,0.0001726,2]
[326491320,1715001054020,-774.59,0.0001726,2]
[326491321,1715001054030,-2105.62,0.0001726,2]
[326491322,1715001054039,-500.0,0.0001726,2]
[326491323,1715001054049,-500.0,0.0001726,2]
[326491324,1715001054058,-717.58,0.0001726,2]
[326491325,1715001054068,-500.0,0.0001726,2]
[326491326,1715001054078,-500.0,0.0001726,2]
[326491327,1715001054087,-500.0,0.0001726,2]
[326491328,1715001054096,-500.0,0.0001726,2]
[326491329,1715001054106,-500.0,0.0001726,2]
[326491330,1715001054116,-500.0,0.0001726,2]
[326491331,1715001054125,-293.9094429,0.0001726,2]
[326491332,1715001054134,-465.99993247,0.0001726,2]
[326491333,1715001054143,-500.0,0.0001726,2]
[326491334,1715001054153,-500.0,0.0001726,2]
[326491335,1715001054162,-521.2724443,0.0001726,2]
[326491336,1715001054172,-500.0,0.0001726,2]
[326491337,1715001054181,-714.46,0.0001726,2]
[326491338,1715001054191,-238.98586832,0.0001726,2]
[326491339,1715001054200,-500.0,0.0001726,2]
[326491340,1715001054214,-500.0,0.0001726,2]
[326491341,1715001054223,-500.0,0.0001726,2]
[326491342,1715001054232,-500.0,0.0001726,2]
[326491343,1715001054241,-500.0,0.0001726,2]
[326491344,1715001054250,-684.77,0.0001726,2]
[326491345,1715001054259,-500.0,0.0001726,2]
[326491346,1715001054268,-500.0,0.0001726,2]
[326491347,1715001054277,-3590.49,0.0001726,2]
[326491348,1715001054287,-1033.57,0.0001726,2]
[326491349,1715001054296,-625.7,0.0001726,2]
[326491350,1715001054310,-500.0,0.0001726,2]
[326491351,1715001054320,-700.17,0.0001726,2]
[326491352,1715001054330,-500.0,0.0001726,2]
[326491353,1715001054344,-500.0,0.0001726,2]
[326491354,1715001054353,-500.0,0.0001726,2]
[326491355,1715001054363,-572.79,0.0001726,2]
[326491356,1715001054372,-500.0,0.0001726,2]
[326491357,1715001054383,-950.21,0.0001726,2]
[326491358,1715001054392,-500.0,0.0001726,2]
[326491359,1715001054402,-519.29,0.0001726,2]
[326491360,1715001054411,-500.0,0.0001726,2]
[326491361,1715001054424,-500.0,0.0001726,2]
[326491362,1715001054434,-686.92,0.0001726,2]
[326491363,1715001054443,-500.0,0.0001726,2]
[326491364,1715001054453,-500.0,0.0001726,2]
[326491365,1715001054463,-1345.07,0.0001726,2]
[326491366,1715001054472,-1183.75,0.0001726,2]
[326491367,1715001054482,-500.0,0.0001726,2]
[326491368,1715001054492,-500.0,0.0001726,2]
[326491369,1715001054501,-500.0,0.0001726,2]
[326491370,1715001054512,-14250.63,0.0001726,2]
[326491371,1715001054522,-500.0,0.0001726,2]
[326491372,1715001054531,-500.0,0.0001726,2]
[326491373,1715001054540,-524.3,0.0001726,2]
[326491374,1715001054549,-8999.19,0.0001726,2]
[326491375,1715001054558,-10484.08,0.0001726,2]
[326491376,1715001054568,-500.0,0.0001726,2]
[326491377,1715001054578,-853.12,0.0001726,2]
[326491378,1715001054588,-500.0,0.0001726,2]
[326491379,1715001054597,-500.0,0.0001726,2]
[326491380,1715001054606,-500.0,0.0001726,2]
[326491381,1715001054616,-500.0,0.0001726,2]
[326491382,1715001054626,-500.0,0.0001726,2]
[326491383,1715001054636,-500.0,0.0001726,2]
[326491384,1715001054646,-1220.42,0.0001726,2]
[326491385,1715001054655,-537.39,0.0001726,2]
[326491386,1715001054664,-869.6,0.0001726,2]
[326491387,1715001054674,-5697.55,0.0001726,2]
[326491388,1715001054683,-642.01,0.0001726,2]
[326491389,1715001054693,-12706.29,0.0001726,2]
[326491390,1715001054703,-500.0,0.0001726,2]
[326491391,1715001054713,-1579.61,0.0001726,2]
[326491392,1715001054722,-763.61,0.0001726,2]
[326491393,1715001054731,-500.0,0.0001726,2]
[326491394,1715001054740,-500.0,0.0001726,2]
[326491395,1715001054749,-1177.83,0.0001726,2]
[326491396,1715001054758,-951.38,0.0001726,2]
[326491397,1715001054768,-500.0,0.0001726,2]
[326491398,1715001054777,-500.0,0.0001726,2]
[326491399,1715001054787,-500.0,0.0001726,2]
[326491400,1715001054797,-2621.5,0.0001726,2]
[326491401,1715001054814,-645.78,0.0001726,2]
[326491402,1715001054827,-6405.17,0.0001726,2]
[326491403,1715001054838,-500.0,0.0001726,2]
[326491404,1715001054847,-500.0,0.0001726,2]
[326491405,1715001054857,-178.018031,0.0001726,2]
[326491406,1715001054867,-178.018031,0.0001726,2]